Cogmind - Beta 16.1 @@@ ROGUE MODE // 2026.03.09 @ 15:45:05 Player: halo Result: Destroyed by D-63 Destroyer with Heavy Rocket Launcher Performance ------------- Evolutions (5) 2500 Regions Visited (14) 2800 Robots Destroyed (85) 425 Value Destroyed (2910) 2910 Prototype IDs (17) 340 Alien Tech Used (0) 0 Bonus (1540) 1540 TOTAL SCORE: 10515 Bonus ------- Pacifist 200 Follower Combat Kills 40 Entered DSFs 1000 Met Data Miner 300 Cogmind --------- Core Integrity 0/1000 Matter 300/300 Energy 52/100 System Corruption 4% Temperature Cool (9) Movement Core (50) Location -5/DSF Parts ------- > --- POWER (2) -------- (None) > --- PROPULSION (5) --- (None) > --- UTILITY (5) ------ Improved Melee Analysis Suite > --- WEAPON (5) ------- (None) > --- INVENTORY (5) ---- Improved Arc Projector Proton Cannon Proton Cannon Advanced Plasma Cannon Peak State ------------ > --- POWER ------------ Antimatter Reactor > --- PROPULSION ------- Heavy Treads Improved VSS Leg VTOL Module > --- UTILITY ---------- Improved Melee Analysis Suite Energy Filter Graphene Brace > --- WEAPON ----------- Tesla Rifle Tesla Rifle Tesla Rifle Molecular Deconstructor > --- INVENTORY -------- Improved Arc Projector Proton Cannon [Rating: 78] Favorites ----------- Power Cold Fusion Reactor Engine Heavy Ion Engine Power Core Fission Core Reactor Cold Fusion Reactor Propulsion Light Treads Treads Light Treads Leg Aluminum Leg Wheel Armored Huge Wheel Flight Unit VTOL Module Utility Graphene Brace Device Graphene Brace Storage High-capacity Matter Pod Processor Advanced Targeting Computer Hackware Authchip [Armor] Protection Light Armor Plating Weapon Improved Light Cannon Energy Gun Improved Arc Projector Energy Cannon Heavy Plasma Cannon Ballistic Gun Improved Assault Rifle Ballistic Cannon Improved Light Cannon Launcher Grenade Launcher Special Weapon Molecular Deconstructor Build | -11 -10 -10 -9 -9 -8 -7 -7 -6 -6 -6 -6 -5 -5 -5 ------- Run | Yrd Mat Min Mat Sto Mat Fac DSF Fac Low Low Dat Pro Fac DSF Slots Evolved 10 | . . . 2 . 2 2 . 2 . . . . 2 . Power 1 | . . . . . . . . . . . . . 1 . Propulsion 3 | . . . 2 . . . . 1 . . . . . . Utility 3 | . . . . . . 2 . 1 . . . . . . Weapon 3 | . . . . . 2 . . . . . . . 1 . Parts Attached 83 | 6 3 1 2 15 15 1 11 3 . 8 . 10 . 8 Power 7 | 1 . . . 4 . . . 1 . . . . . 1 Engine 4 | 1 . . . 3 . . . . . . . . . . Core 1 | . . . . . . . . 1 . . . . . . Reactor 2 | . . . . 1 . . . . . . . . . 1 Propulsion 24 | 2 . . 2 4 7 . 2 . . 2 . 3 . 2 Treads 11 | 2 . . . 3 5 . . . . . . 1 . . Leg 5 | . . . 2 1 . . . . . . . . . 2 Wheel 5 | . . . . . 2 . 2 . . 1 . . . . Hover . | . . . . . . . . . . . . . . . Flight 3 | . . . . . . . . . . 1 . 2 . . Utility 26 | 1 2 . . 3 7 . 4 2 . 3 . 4 . . Device 10 | . 1 . . . 3 . 2 1 . 1 . 2 . . Storage 6 | 1 1 . . . 1 . 2 . . 1 . . . . Processor 3 | . . . . . 2 . . . . . . 1 . . Hackware 1 | . . . . . . . . . . 1 . . . . Protection 6 | . . . . 3 1 . . 1 . . . 1 . . Artifact . | . . . . . . . . . . . . . . . Weapon 26 | 2 1 1 . 4 1 1 5 . . 3 . 3 . 5 Energy Gun 5 | . . . . . . . . . . . . 1 . 4 Energy Cannon 1 | . . . . . . . . . . . . . . 1 Ballistic Gun 9 | 2 . . . 1 1 . 1 . . 3 . 1 . . Ballistic Cannon 9 | . . 1 . 3 . 1 4 . . . . . . . Launcher 1 | . 1 . . . . . . . . . . . . . Special Weapon 1 | . . . . . . . . . . . . 1 . . Impact Weapon . | . . . . . . . . . . . . . . . Slashing Weapon . | . . . . . . . . . . . . . . . Piercing Weapon . | . . . . . . . . . . . . . . . Special Melee Weapon . | . . . . . . . . . . . . . . . Unidentified Prototypes 6 | . . . . 4 . . . . . . . 1 . 1 Parts Lost 38 | . . . . . 2 . . . . 21 . . . 15 Power 3 | . . . . . . . . . . 2 . . . 1 Propulsion 10 | . . . . . . . . . . 5 . . . 5 Utility 13 | . . . . . 2 . . . . 7 . . . 4 Weapon 12 | . . . . . . . . . . 7 . . . 5 Highest Loss Streak 12 | . . . . . 1 . . . . 7 . . . 12 To Critical Strikes . | . . . . . . . . . . . . . . . Average Backups 3 | . 2 4 3 5 3 3 3 2 3 1 . . . 1 Power . | . . . . . . . . . 1 . . . . . Propulsion . | . . 2 . . 1 2 2 1 1 . . . . . Utility 1 | . . 1 1 2 2 . 1 1 1 . . . . . Weapon . | . . 1 2 2 . 1 . . . . . . . 1 Tool/Special . | . . . . . . . . . . . . . . . Unused Backups 7 | . . . . 5 . . 1 . . . . . . 1 Power 2 | . . . . 2 . . . . . . . . . . Propulsion . | . . . . . . . . . . . . . . . Utility 2 | . . . . 1 . . 1 . . . . . . . Weapon 2 | . . . . 1 . . . . . . . . . 1 Tool/Special 1 | . . . . 1 . . . . . . . . . . Average Slot Usage (%) 77 | . 88 100 96 99 93 69 80 85 86 41 6 46 64 54 Engine 2 | . 14 14 11 8 . . . . . . . . . . Reactor 3 | . . . . 2 9 7 7 3 . . . . . 2 Treads 15 | . 28 28 22 31 22 . . 5 6 1 . 3 5 3 Leg 3 | . . . 18 12 3 . . . . . . . . 4 Wheel 4 | . . . . . 5 15 15 13 13 5 . . . . Flight 1 | . . . . . . . . . . 3 . 8 11 6 Device 7 | . 2 14 11 4 1 . 11 13 13 7 6 15 17 11 Storage 3 | . 15 14 11 5 . 7 7 6 6 3 . . . . Processor 3 | . . . . . 6 7 7 6 6 . . 3 5 5 Protection 6 | . . . . 12 9 . . 6 6 . . 3 5 1 Ballistic Gun 7 | . 18 14 11 . 17 15 11 . . 8 . 5 5 3 Ballistic Cannon 14 | . . 11 11 21 17 15 18 26 26 7 . . . . Peak Build Rating 78 | 6 7 7 9 17 41 37 58 62 61 62 7 66 66 78 Average Rating 31 | 3 6 7 8 14 30 37 50 61 61 27 7 35 66 58 On Entrance 29 | . 6 7 7 9 17 36 37 58 61 61 7 7 66 66 Avg Prop Armor Cover (%) 4 | . . . 15 4 3 . . 5 5 5 . 3 3 4 Naked Turns . | . . . . . . . . . . . . . . . Heaviest Build 54 | 14 16 16 16 26 32 30 50 54 54 54 1 21 21 41 Greatest Support 80 | 40 40 40 20 60 80 56 56 56 56 56 3 70 70 70 Greatest Overweight (x) 10 | . . . . . 10 . 1 . . 3 . 3 . 3 Average Overweight (x) . | . . . . . . . . . . . . . . . Largest Inventory Capacity 8 | 8 8 8 8 8 5 5 5 5 5 5 5 5 5 5 Average Capacity 5 | 6 8 8 8 6 5 5 5 5 5 5 5 5 5 5 Most Carried 8 | 3 5 5 4 8 5 3 5 5 4 5 . 3 . 5 Average Carried 3 | . 2 4 3 5 3 3 4 3 4 1 . . . 1 Final Capacity 8 | 8 8 8 8 5 5 5 5 5 5 5 5 5 5 5 Final Carried 5 | . 4 5 3 4 3 3 5 4 4 . . . . 4 Class Distribution -------------------- 30% | Gunner 26% | Mutant 15% | Scavenger-Mutant 11% | Tank 9% | Scavenger-Tank 4% | Derelict-Mutant Dominant Class ---------------- Mutant | -10/Materials Mutant | -10/Mines Mutant | -9/Materials Scavenger-Mutant | -9/Storage Gunner | -8/Materials Gunner | -7/Factory Gunner | -7/DSF Gunner | -6/Factory Gunner | -6/Lower Caves Scavenger-Tank | -6/Lower Caves Mutant | -6/Data Miner Derelict-Mutant | -5/Proximity Caves Derelict-Tank | -5/Factory Scavenger-Tank | -5/DSF Resources | -11 -10 -10 -9 -9 -8 -7 -7 -6 -6 -6 -6 -5 -5 -5 ----------- Run | Yrd Mat Min Mat Sto Mat Fac DSF Fac Low Low Dat Pro Fac DSF Matter Collected 3216 | 188 102 20 . 596 768 . 163 490 294 369 . 124 . 102 Remotely . | . . . . . . . . . . . . . . . Salvage Created 2414 | . . . . 674 777 . 162 280 134 239 . 20 . 128 Parts 157 | . . . . 49 53 . 5 13 15 18 . 1 . 3 Haulers Intercepted 1 | . . . . 1 . . . . . . . . . . Recyclers Shooed . | . . . . . . . . . . . . . . . Parts Field Recycled . | . . . . . . . . . . . . . . . Retrieved Matter . | . . . . . . . . . . . . . . . Parts Self-Destructed 36 | . . . . . . . . . 13 18 . 5 . . Prevented . | . . . . . . . . . . . . . . . Parts Restored . | . . . . . . . . . . . . . . . Kills | -11 -10 -10 -9 -9 -8 -7 -7 -6 -6 -6 -6 -5 -5 -5 ------- Run | Yrd Mat Min Mat Sto Mat Fac DSF Fac Low Low Dat Pro Fac DSF Combat Hostiles Destroyed 79 | . . . . 20 17 . 4 9 6 14 . 1 . 8 Melee 1 | . . . . . . . . . . 1 . . . . Guns 25 | . . . . . 14 . 1 . . 4 . 1 . 5 Cannons 50 | . . . . 20 3 . 3 9 6 9 . . . . Classes Destroyed 17 | . . . . 7 3 . 2 2 1 . . . . 2 Worker 1 | . . . . 1 . . . . . . . . . . Tunneler 1 | . . . . . . . . 1 . . . . . . Hauler 1 | . . . . 1 . . . . . . . . . . Recycler 2 | . . . . 2 . . . . . . . . . . Mechanic 1 | . . . . . . . . 1 . . . . . . Operator 1 | . . . . . 1 . . . . . . . . . Watcher 5 | . . . . 1 4 . . . . . . . . . Swarmer 31 | . . . . 7 2 . . 5 4 12 . 1 . . Cutter 1 | . . . . . . . . . . . . . . 1 Grunt 19 | . . . . 5 8 . 2 3 1 . . . . . Brawler 2 | . . . . . 1 . . 1 . . . . . . Sentry 13 | . . . . 8 5 . . . . . . . . . Specialist 2 | . . . . . . . 1 . . . . . . 1 Hunter 3 | . . . . . 1 . . . . 2 . . . . Programmer 1 | . . . . . . . . . 1 . . . . . Heavy 1 | . . . . . . . 1 . . . . . . . Assembled 6 | . . . . . . . . . . . . . . 6 Best Kill Streak 7 | . . . . 5 7 . 2 4 4 4 . 1 . 3 Combat Bots Only 6 | . . . . 4 6 . 2 3 4 4 . 1 . 3 Max Kills in Single Turn 2 | . . . . 2 1 . 1 1 1 1 . 1 . 1 Gunslinging . | . . . . . . . . . . . . . . . Exploded . | . . . . . . . . . . . . . . . Melee 1 | . . . . . . . . . . 1 . . . . Uniques/NPCs Destroyed . | . . . . . . . . . . . . . . . Combat | -11 -10 -10 -9 -9 -8 -7 -7 -6 -6 -6 -6 -5 -5 -5 -------- Run | Yrd Mat Min Mat Sto Mat Fac DSF Fac Low Low Dat Pro Fac DSF Hostile Shots Fired 576 | . . . . 78 90 . 22 30 23 229 . 1 . 103 Missed 159 | . . . . 20 25 . 6 6 10 64 . 1 . 27 Hits 417 | . . . . 58 65 . 16 24 13 165 . . . 76 Melee 9 | . . . . . . . . . . 3 . . . 6 Projectile 408 | . . . . 58 65 . 16 24 13 162 . . . 70 AOE 24 | . . . . . . . . . . . . . . 24 Critical Strikes 8 | . . . . 2 2 . . . . 2 . . . 2 Actively Blocked 4 | . . . . . . . . . . 2 . . . 2 Damage Taken 7863 | . 80 . . 681 925 . 429 397 203 2702 . 2 . 2444 Core 1955 | . . . . 81 48 . 72 34 27 680 . 2 . 1011 Absorbed by Shields . | . . . . . . . . . . . . . . . Redirected to Shielding 16 | . . . . . . . . . . . . . . 16 Ignored by Resistances 6 | . . . . . . . . . 6 . . . . . Regen/Repaired (Parts) 217 | . . . . 90 127 . . . . . . . . . Core Remaining (%) 78 | 100 . 100 . 79 91 . 89 . . . . 12 . . Volleys Fired 266 | . 1 . . 60 73 . 12 21 12 53 . 7 . 27 Largest 4 | . 1 . . 2 4 . 4 4 3 4 . 2 . 3 Hottest 195 | . 30 . . 66 112 . 116 176 132 176 . 95 . 195 Shots Fired 561 | . 1 . . 114 185 . 37 47 21 104 . 11 . 41 Gun 203 | . . . . . 107 . 24 . . 25 . 11 . 36 Cannon 353 | . . . . 114 78 . 13 47 21 79 . . . 1 Launcher 1 | . 1 . . . . . . . . . . . . . Special 4 | . . . . . . . . . . . . . . 4 Kinetic 527 | . . . . 114 185 . 37 47 21 104 . 7 . 12 Thermal 1 | . . . . . . . . . . . . . . 1 Explosive 1 | . 1 . . . . . . . . . . . . . Electromagnetic 28 | . . . . . . . . . . . . 4 . 24 Robot Hit Streak 18 | . . . . 11 18 . 6 7 4 5 . 1 . 7 Robot Miss Streak 8 | . . . . 6 4 . 3 3 3 5 . 8 . 3 Penetration Max . | . . . . . . . . . . . . . . . Secondary Targets 1 | . . . . . . . . . . . . . . 1 Max Gunslinging Chain 1 | . . . . . . . . . . . . . . 1 Shots Hit Robots 298 | . . . . 62 98 . 27 28 9 48 . 2 . 24 Core Hits 145 | . . . . 25 46 . 19 15 7 22 . 3 . 8 Critical Kills . | . . . . . . . . . . . . . . . Critical Parts Destroyed 1 | . . . . . . . . . . . . . . 1 Critical Strikes 11 | . . . . 2 . . . 5 1 2 . . . 1 Destroy 1 | . . . . . . . . . . . . . . 1 Blast 10 | . . . . 2 . . . 5 1 2 . . . . Melee Attacks . | . . . . . . . . . . . . . . . Impact . | . . . . . . . . . . . . . . . Slashing . | . . . . . . . . . . . . . . . Piercing . | . . . . . . . . . . . . . . . Sneak Attacks . | . . . . . . . . . . . . . . . Combat Hostiles . | . . . . . . . . . . . . . . . Follow-up Attacks . | . . . . . . . . . . . . . . . Damage Inflicted 6322 | . . . . 1259 1716 . 507 922 312 1142 . 43 . 421 Guns 1929 | . . . . . 1051 . 221 . . 198 . 38 . 421 Cannons 4325 | . . . . 1239 640 . 286 908 312 940 . . . . Explosions . | . . . . . . . . . . . . . . . Melee . | . . . . . . . . . . . . . . . Ramming 68 | . . . . 20 25 . . 14 . 4 . 5 . . Kinetic 5978 | . . . . 1239 1691 . 507 908 312 1138 . 25 . 158 Thermal . | . . . . . . . . . . . . . . . Explosive . | . . . . . . . . . . . . . . . Electromagnetic 276 | . . . . . . . . . . . . 13 . 263 Impact . | . . . . . . . . . . . . . . . Slashing . | . . . . . . . . . . . . . . . Piercing . | . . . . . . . . . . . . . . . Highest Corruption 4 | . . . . . 3 . . . . 2 2 2 . 4 Average Corruption 2 | . . . . . 2 . . . . 2 2 2 . 3 Corruption Purged 3 | . . . . . 3 . . . . . . . . . Corruption Blocked . | . . . . . . . . . . . . . . . Effects 26 | . . . . . 16 . . . . 1 . 5 . 4 Message Errors 9 | . . . . . 6 . . . . . . 2 . 1 Matter Fused 3 | . . . . . 2 . . . . . . . . 1 Heat Flow Errors 4 | . . . . . 3 . . . . . . 1 . . Energy Discharges 1 | . . . . . 1 . . . . . . . . . Parts Fused 1 | . . . . . . . . . . . . 1 . . Data Loss (minor) 2 | . . . . . 1 . . . . 1 . . . . Data Loss (major) 2 | . . . . . 1 . . . . . . 1 . . Misfires 2 | . . . . . 1 . . . . . . . . 1 Alerts 1 | . . . . . . . . . . . . . . 1 Weapon Failures 1 | . . . . . 1 . . . . . . . . . Overload Shots . | . . . . . . . . . . . . . . . Overflow Damage 77 | . . . . 14 14 . 1 9 . 39 . . . . Projectiles 77 | . . . . 14 14 . 1 9 . 39 . . . . Explosions . | . . . . . . . . . . . . . . . Melee . | . . . . . . . . . . . . . . . Knockbacks 26 | . . . . 5 5 . 1 4 . 11 . . . . Impact . | . . . . . . . . . . . . . . . Kinetic 24 | . . . . 4 5 . 1 3 . 11 . . . . Secondary 2 | . . . . 1 . . . 1 . . . . . . Self-Inflicted Damage 20 | . . . . . 11 . . 6 . 1 . 2 . . Shots . | . . . . . . . . . . . . . . . Rammed 19 | . . . . 6 6 . . 3 . 3 . 1 . . Targets Rammed 22 | . . . . 9 6 . . 3 . 3 . 1 . . Kicked . | . . . . . . . . . . . . . . . Crushed 3 | . . . . 3 . . . . . . . . . . Highest Temperature 298 | . . . . 132 249 . 9 298 167 290 . 116 . 60 Average Temperature 61 | . . . . 37 71 . 9 103 60 60 . 27 . 24 Received Heat Transfer 890 | . . . . 180 306 . 90 45 18 108 . . . 143 Effects 4 | . . . . . . . . 2 . 2 . . . . Interference 4 | . . . . . . . . 2 . 2 . . . . Siege Activations . | . . . . . . . . . . . . . . . Martial Activations . | . . . . . . . . . . . . . . . Shielding Activations . | . . . . . . . . . . . . . . . Robots Disrupted . | . . . . . . . . . . . . . . . Combat Hostiles . | . . . . . . . . . . . . . . . Robots Corrupted . | . . . . . . . . . . . . . . . Combat Hostiles . | . . . . . . . . . . . . . . . Parts Fried . | . . . . . . . . . . . . . . . Impact Corruptions . | . . . . . . . . . . . . . . . Robots Melted . | . . . . . . . . . . . . . . . Combat Hostiles . | . . . . . . . . . . . . . . . Parts Melted . | . . . . . . . . . . . . . . . Heat Transferred . | . . . . . . . . . . . . . . . Parts Sabotaged . | . . . . . . . . . . . . . . . Parts Stolen . | . . . . . . . . . . . . . . . Parts Stripped . | . . . . . . . . . . . . . . . Power Chain Reactions . | . . . . . . . . . . . . . . . Alert | -11 -10 -10 -9 -9 -8 -7 -7 -6 -6 -6 -6 -5 -5 -5 ------- Run | Yrd Mat Min Mat Sto Mat Fac DSF Fac Low Low Dat Pro Fac DSF Maximum Alert Level 1 | . . . . 1 1 . . . . . . . 1 1 Low Security (%) 93 | 100 100 100 100 98 88 100 100 100 . . . . . 86 Level 1 6 | . . . . 1 11 . . . . . . . 100 13 Level 2 . | . . . . . . . . . . . . . . . Level 3 . | . . . . . . . . . . . . . . . Level 4 . | . . . . . . . . . . . . . . . Level 5 . | . . . . . . . . . . . . . . . High Security . | . . . . . . . . . . . . . . . Max Security . | . . . . . . . . . . . . . . . Peak Influence 300 | . 6 . . 205 225 62 126 112 . . . . 300 225 Initial 300 | . . . . . 73 62 36 65 . . . . 300 196 Average 107 | . . . . 124 124 58 98 48 . . . . 290 171 Influence Increases 2439 | . 16 . . 607 475 . 90 236 140 425 . 86 300 64 Destroy 0b10 Robot/C 1500 | . . . . 400 340 . 80 180 120 280 . 60 . 40 Destroy 0b10 Robot/NC 70 | . . . . 25 25 . . 10 . . . 10 . . Destroy Leader 312 | . . . . 114 108 . 10 20 20 40 . . . . Allied During Kill 21 | . . . . . . . . . . . . 16 . 5 Successful Hack 12 | . . . . 12 . . . . . . . . . . Disable Machine 60 | . 15 . . 45 . . . . . . . . . . Destroy Structure 29 | . 1 . . 11 2 . . 11 . . . . . 4 Advance Influence 300 | . . . . . . . . . . . . . 300 . Lose Combat Pursuer 135 | . . . . . . . . 15 . 105 . . . 15 Influence Decreases 2349 | . 16 . . 432 513 85 16 258 180 489 . 86 20 254 Entered New Map 391 | . . . . . 102 75 16 61 40 13 . . . 84 Time Decay 1637 | . 16 . . 432 391 10 . 197 140 345 . 86 20 . Lost Part 301 | . . . . . 20 . . . . 131 . . . 150 Lost Ally 20 | . . . . . . . . . . . . . . 20 Squads Dispatched 12 | . 3 . . . 2 . 1 2 . 1 . . . 3 Investigation 1 | . 1 . . . . . . . . . . . . . Extermination 1 | . . . . . . . . 1 . . . . . . Reinforcement 9 | . 2 . . . 2 . 1 1 . . . . . 3 Assault 1 | . . . . . . . . . . 1 . . . . Garrison . | . . . . . . . . . . . . . . . Intercept . | . . . . . . . . . . . . . . . Searches Triggered . | . . . . . . . . . . . . . . . Construction Impeded 1 | . . . . . . . . 1 . . . . . . Haulers Reinforced . | . . . . . . . . . . . . . . . Active Scanning Responses . | . . . . . . . . . . . . . . . Cargo Convoy Interrupts . | . . . . . . . . . . . . . . . Stealth | -11 -10 -10 -9 -9 -8 -7 -7 -6 -6 -6 -6 -5 -5 -5 --------- Run | Yrd Mat Min Mat Sto Mat Fac DSF Fac Low Low Dat Pro Fac DSF Distress Signals 8 | . . . . 2 6 . . . . . . . . . Communications Jammed . | . . . . . . . . . . . . . . . Distress Signals . | . . . . . . . . . . . . . . . Times Spotted 159 | . 1 . . 26 31 . 6 13 6 27 . 5 . 44 Peak Tracking Total 21 | . 2 . . 5 7 . 3 5 4 8 . 5 . 21 Tactical Retreats 7 | . . . . . . . . 1 . 4 . . . 2 Traps | -11 -10 -10 -9 -9 -8 -7 -7 -6 -6 -6 -6 -5 -5 -5 ------- Run | Yrd Mat Min Mat Sto Mat Fac DSF Fac Low Low Dat Pro Fac DSF Traps Triggered 9 | . 2 . . 4 2 . . 1 . . . . . . Indirectly . | . . . . . . . . . . . . . . . Trap Hack Attempts . | . . . . . . . . . . . . . . . Triggered . | . . . . . . . . . . . . . . . Disarmed . | . . . . . . . . . . . . . . . Reprogrammed . | . . . . . . . . . . . . . . . Reused . | . . . . . . . . . . . . . . . Traps Extracted . | . . . . . . . . . . . . . . . Installed . | . . . . . . . . . . . . . . . Triggered . | . . . . . . . . . . . . . . . Machines | -11 -10 -10 -9 -9 -8 -7 -7 -6 -6 -6 -6 -5 -5 -5 ---------- Run | Yrd Mat Min Mat Sto Mat Fac DSF Fac Low Low Dat Pro Fac DSF Machines Disabled 5 | . 1 . . 3 . . . . . . . 1 . . Max in Single Turn 1 | . 1 . . 1 . . . . . . . 1 . . Machines Repaired . | . . . . . . . . . . . . . . . Machines Dismantled . | . . . . . . . . . . . . . . . Machines Sabotaged . | . . . . . . . . . . . . . . . Overloaded Fab Kills . | . . . . . . . . . . . . . . . Hacking | -11 -10 -10 -9 -9 -8 -7 -7 -6 -6 -6 -6 -5 -5 -5 --------- Run | Yrd Mat Min Mat Sto Mat Fac DSF Fac Low Low Dat Pro Fac DSF Machines Accessed 23 | . . . . 9 7 1 . 1 . . 4 . 1 . Terminals 14 | . . . . 6 5 1 . 1 . . . . 1 . Fabricators . | . . . . . . . . . . . . . . . Repair Stations 2 | . . . . 1 1 . . . . . . . . . Recycling Units 2 | . . . . 1 1 . . . . . . . . . Scanalyzers . | . . . . . . . . . . . . . . . Garrison Access 1 | . . . . 1 . . . . . . . . . . Total Hacks 66 | . . . . 19 15 1 . 1 . . 29 . 1 . Successful 51 | . . . . 12 8 1 . . . . 29 . 1 . Failed 15 | . . . . 7 7 . . 1 . . . . . . Catastrophic 1 | . . . . . 1 . . . . . . . . . Database Lockouts . | . . . . . . . . . . . . . . . Manual 1 | . . . . . . . . . . . . 1 . . Terminals 24 | . . . . 12 9 1 . 1 . . . . 1 . Fabricators . | . . . . . . . . . . . . . . . Repair Stations 5 | . . . . 3 2 . . . . . . . . . Recycling Units 7 | . . . . 3 4 . . . . . . . . . Scanalyzers . | . . . . . . . . . . . . . . . Garrison Access 1 | . . . . 1 . . . . . . . . . . Terminal Hacks 40 | . . . . 6 3 1 . . . . 29 . 1 . Record 12 | . . . . 1 . . . . . . 11 . . . Part Schematic 12 | . . . . . . . . . . . 12 . . . Robot Schematic 3 | . . . . . . . . . . . 3 . . . Robot Analysis 1 | . . . . 1 . . . . . . . . . . Prototype ID Bank 3 | . . . . . . . . . . . 3 . . . Open Door 2 | . . . . 2 . . . . . . . . . . Open DSF 2 | . . . . . . 1 . . . . . . 1 . Emergency Access Points 1 | . . . . . 1 . . . . . . . . . Alert Level 2 | . . . . 1 1 . . . . . . . . . Locate Traps 1 | . . . . . 1 . . . . . . . . . Registered Components 1 | . . . . 1 . . . . . . . . . . Fabricator Hacks . | . . . . . . . . . . . . . . . Repair Station Hacks 4 | . . . . 2 2 . . . . . . . . . Scan Component 2 | . . . . 1 1 . . . . . . . . . Repair 2 | . . . . 1 1 . . . . . . . . . Recycling Unit Hacks 6 | . . . . 3 3 . . . . . . . . . Recycle Component 1 | . . . . 1 . . . . . . . . . . Process 1 | . . . . . 1 . . . . . . . . . Report Inventory 2 | . . . . 1 1 . . . . . . . . . Retrieve Matter 2 | . . . . 1 1 . . . . . . . . . Scanalyzer . | . . . . . . . . . . . . . . . Garrison Access Hacks 1 | . . . . 1 . . . . . . . . . . Unlock Access 1 | . . . . 1 . . . . . . . . . . Unauthorized Hacks . | . . . . . . . . . . . . . . . Terminals . | . . . . . . . . . . . . . . . Fabricators . | . . . . . . . . . . . . . . . Repair Stations . | . . . . . . . . . . . . . . . Recycling Units . | . . . . . . . . . . . . . . . Scanalyzers . | . . . . . . . . . . . . . . . Garrison Access . | . . . . . . . . . . . . . . . Data Cores Recovered . | . . . . . . . . . . . . . . . Used . | . . . . . . . . . . . . . . . Hacking Detections 14 | . . . . 7 6 . . . . . . . 1 . Full Trace Events . | . . . . . . . . . . . . . . . Feedback Events . | . . . . . . . . . . . . . . . Feedback Blocked . | . . . . . . . . . . . . . . . Robot Schematics Acquired 3 | . . . . . . . . . . . 3 . . . Robots Built . | . . . . . . . . . . . . . . . Authchips . | . . . . . . . . . . . . . . . Time . | . . . . . . . . . . . . . . . Total Robot Build Rating . | . . . . . . . . . . . . . . . Part Schematics Acquired 12 | . . . . . . . . . . . 12 . . . Parts Built . | . . . . . . . . . . . . . . . Authchips . | . . . . . . . . . . . . . . . Time . | . . . . . . . . . . . . . . . Total Part Build Rating . | . . . . . . . . . . . . . . . Part Studies Acquired . | . . . . . . . . . . . . . . . Parts Repaired 2 | . . . . 1 1 . . . . . . . . . Time 58 | . . . . 26 32 . . . . . . . . . Parts Recycled 1 | . . . . 1 . . . . . . . . . . Recycled Matter 238 | . . . . . 238 . . . . . . . . . Retrieved Matter 238 | . . . . . 238 . . . . . . . . . Retrieved Components . | . . . . . . . . . . . . . . . Parts Scanalyzed . | . . . . . . . . . . . . . . . Part Schematics Acquired . | . . . . . . . . . . . . . . . Parts Damaged . | . . . . . . . . . . . . . . . Bothacking | -11 -10 -10 -9 -9 -8 -7 -7 -6 -6 -6 -6 -5 -5 -5 ------------ Run | Yrd Mat Min Mat Sto Mat Fac DSF Fac Low Low Dat Pro Fac DSF Used RIF Installer . | . . . . . . . . . . . . . . . Robots Hacked . | . . . . . . . . . . . . . . . Non-combat . | . . . . . . . . . . . . . . . Combat . | . . . . . . . . . . . . . . . Robot Hacks Applied . | . . . . . . . . . . . . . . . Relay Couplers Released . | . . . . . . . . . . . . . . . Fabnet Peak Effective % . | . . . . . . . . . . . . . . . Robots Rewired . | . . . . . . . . . . . . . . . Allies Hacked . | . . . . . . . . . . . . . . . Hacks Repelled . | . . . . . . . . . . . . . . . Allies | -11 -10 -10 -9 -9 -8 -7 -7 -6 -6 -6 -6 -5 -5 -5 -------- Run | Yrd Mat Min Mat Sto Mat Fac DSF Fac Low Low Dat Pro Fac DSF Total Allies 1 | . . . . . . . . . . . . 1 . . Largest Group 1 | . . . . . . . . . . . . 1 1 1 Highest-Rated Group 96 | . . . . . . . . . . . . 96 96 96 Highest-Rated Ally 96 | . . . . . . . . . . . . 96 96 96 Total Orders . | . . . . . . . . . . . . . . . Ally Attacks 26 | . . . . . . . . . . . . 16 . 10 Total Damage 716 | . . . . . . . . . . . . 351 . 365 Kills 4 | . . . . . . . . . . . . 4 . . Allies Corrupted . | . . . . . . . . . . . . . . . Allies Melted . | . . . . . . . . . . . . . . . Intel | -11 -10 -10 -9 -9 -8 -7 -7 -6 -6 -6 -6 -5 -5 -5 ------- Run | Yrd Mat Min Mat Sto Mat Fac DSF Fac Low Low Dat Pro Fac DSF Active Infowar (turns) 879 | . 15 142 16 468 238 . . . . . . . . . Optics 238 | . . . . . 238 . . . . . . . . . Terrain 641 | . 15 142 16 468 . . . . . . . . . . Robot Analysis Total 1 | . . . . 1 . . . . . . . . . . Derelict Logs Recovered 1 | . . . . . . . . . . . . 1 . . Drone Launches 4 | . . . . . 4 . . . . . . . . . Drone Recoveries . | . . . . . . . . . . . . . . . Exploration | -11 -10 -10 -9 -9 -8 -7 -7 -6 -6 -6 -6 -5 -5 -5 ------------- Run | Yrd Mat Min Mat Sto Mat Fac DSF Fac Low Low Dat Pro Fac DSF Turns Passed 5545 | 63 130 142 16 1241 1263 28 175 426 299 1018 45 445 55 199 Spaces Moved 3438 | 41 75 88 12 607 633 26 115 239 268 664 90 469 35 76 Core 527 | 12 . . . . 1 . . . . 362 90 56 . 6 Treads 1352 | 29 75 88 . 537 413 . . . . . . 128 35 47 Legs 105 | . . . 12 70 . . . . . . . . . 23 Wheels 1169 | . . . . . 219 26 115 239 268 302 . . . . Hover . | . . . . . . . . . . . . . . . Flight 285 | . . . . . . . . . . . . 285 . . Fastest Speed 50 | 50 160 160 120 120 100 100 100 100 100 50 50 50 160 50 Average Speed 123 | 127 160 160 120 155 141 100 100 100 100 120 50 86 160 141 Slowest Speed 550 | 160 160 160 120 160 550 100 115 100 100 200 50 200 160 200 Overloaded Moves . | . . . . . . . . . . . . . . . Propulsion Burnouts . | . . . . . . . . . . . . . . . Robots Hopped . | . . . . . . . . . . . . . . . Potential Cave-ins . | . . . . . . . . . . . . . . . Cave-ins Triggered . | . . . . . . . . . . . . . . . Exploration Rate (%) 39 | 4 23 31 3 73 49 1 85 7 53 71 75 61 1 51 Regions Visited 14 Branch Regions 6 Pre-discovered Areas 1 | . . . . . . . . . . . 1 . . . Known Exits Taken 2 | . . . . . . 1 . . . . . . 1 . Unknown Exits Taken 11 | 1 1 1 1 1 1 . . 1 1 1 1 1 . . Scrap Searched 6 | . . 1 . . . . . . . 1 . 4 . . Spaces Dug . | . . . . . . . . . . . . . . . Terrain Destroyed 69 | . . . . 10 3 . . 11 5 39 . . . 1 Melee . | . . . . . . . . . . . . . . . Projectile 69 | . . . . 10 3 . . 11 5 39 . . . 1 AOE . | . . . . . . . . . . . . . . . Terrain Rammed . | . . . . . . . . . . . . . . . Walls Destroyed . | . . . . . . . . . . . . . . . Machines Disabled . | . . . . . . . . . . . . . . . Actions | -11 -10 -10 -9 -9 -8 -7 -7 -6 -6 -6 -6 -5 -5 -5 --------- Run | Yrd Mat Min Mat Sto Mat Fac DSF Fac Low Low Dat Pro Fac DSF Total 4276 | 52 84 89 13 791 849 27 160 392 279 793 89 498 34 126 Wait 323 | . . . . 47 93 . . 123 . 57 . . . 3 Move 3425 | 40 74 87 11 606 632 26 114 238 267 663 89 468 34 76 Hop . | . . . . . . . . . . . . . . . Pick Up 90 | 6 5 1 . 25 13 . 11 2 . 6 . 10 . 11 Fast Attach 4 | . . . . 1 2 . 1 . . . . . . . Attach 53 | 6 2 . 2 5 5 . 4 2 . 10 . 11 . 6 Detach 4 | . 1 . . . 1 . . . . 1 . 1 . . Swap 40 | . 1 1 . 15 12 1 6 2 . . . . . 2 Drop 49 | . . . . 23 12 . 12 1 . . . . . 1 Fire 266 | . 1 . . 60 73 . 12 21 12 53 . 7 . 27 Melee . | . . . . . . . . . . . . . . . Ram 13 | . . . . . 6 . . 3 . 3 . 1 . . Kick . | . . . . . . . . . . . . . . . Crush 9 | . . . . 9 . . . . . . . . . . Escape Stasis . | . . . . . . . . . . . . . . . Rewire . | . . . . . . . . . . . . . . . Trap . | . . . . . . . . . . . . . . . Miscellaneous . | . . . . . . . . . . . . . . . Route ------- -11/Scrapyard -10/Materials -10/Mines -9/Materials -9/Storage (discovered 2 exits: *Mat / Gar) -8/Materials -7/Factory -7/DSF -6/Factory -6/Lower Caves -6/Lower Caves -6/Data Miner -5/Proximity Caves -5/Factory -5/DSF History --------- Turn | Location | Event 8 | -11/Scrapyard | Discovered new exit (range 14) 64 | -11/Scrapyard | Entered Materials 65 | -10/Materials | Met a group of wandering Federalists 168 | -10/Materials | Discovered new exit (range 16) 194 | -10/Materials | Entered Mines 315 | -10/Mines | Build established: Mutant 330 | -10/Mines | Discovered new exit (range 5) 336 | -10/Mines | Entered Materials 336 | -9/Materials | Evolved 2 slots: Propulsion x2 338 | -9/Materials | Discovered new exit (range 8) 352 | -9/Materials | Entered Storage 1247 | -9/Storage | Build established: Scavenger-Mutant 1424 | -9/Storage | Repaired Lgt. Treads 1574 | -9/Storage | Discovered new exit (range 6) 1581 | -9/Storage | Identified exit to Garrison 1593 | -9/Storage | Entered Materials 1593 | -8/Materials | Evolved 2 slots: Weapon x2 1924 | -8/Materials | Build established: Tank 2527 | -8/Materials | Build established: Gunner 2755 | -8/Materials | Repaired Imp. Light Cannon 2842 | -8/Materials | Discovered new exit (range 6) 2856 | -8/Materials | Entered Factory 2856 | -7/Factory | Evolved 2 slots: Utility x2 2884 | -7/Factory | Identified exit to DSF 2884 | -7/Factory | Entered DSF 2931 | -7/DSF | Additional patrols routed to DSF 2991 | -7/DSF | Discovered new exit (range 14) 3059 | -7/DSF | Entered Factory 3059 | -6/Factory | Evolved 2 slots: Propulsion x1, Utility x1 3447 | -6/Factory | Discovered new exit (range 11) 3485 | -6/Factory | Entered Lower Caves 3567 | -6/Lower Caves | Encountered a Warlord checkpoint 3766 | -6/Lower Caves | Discovered new exit (range 9) 3784 | -6/Lower Caves | Entered another Lower Caves area 3790 | -6/Lower Caves | Encountered a Warlord checkpoint 4097 | -6/Lower Caves | Lost 5 parts (1p2n2w) 4118 | -6/Lower Caves | Attracted the attention of an 0b10 outpost 4193 | -6/Lower Caves | Core integrity fell below 50% 4243 | -6/Lower Caves | Lost 7 parts (1p2n3u1w) 4782 | -6/Lower Caves | Core integrity fell below 20% 4795 | -6/Lower Caves | Discovered new exit (range 15) 4802 | -6/Lower Caves | Entered Data Miner 4802 | -6/Data Miner | Discovered new exit (range 6) 4812 | -6/Data Miner | Met Data Miner 4816 | -6/Data Miner | Lost 3 parts (1n1u1w) 4832 | -6/Data Miner | Learned location of Section 7 (-2) 4832 | -6/Data Miner | Acquired the access code to Warlord's prototype stash 4836 | -6/Data Miner | Received God Mode back door access code from Data Miner 4847 | -6/Data Miner | Entered Proximity Caves 4865 | -5/Proximity Caves | Escorted by Enhanced Grunt 4890 | -5/Proximity Caves | Spotter reported a threat 4976 | -5/Proximity Caves | Spotter reported a threat 5033 | -5/Proximity Caves | Learned Factory security intel 5134 | -5/Proximity Caves | Discovered new exit (range 14) 5233 | -5/Proximity Caves | Acquired the password to a Derelict Tinkerer's latest research 5248 | -5/Proximity Caves | Found Prototype Special Weapon 5249 | -5/Proximity Caves | Identified Molecular Deconstructor 5292 | -5/Proximity Caves | Entered Factory 5292 | -5/Factory | Accompanied by 1 ally 5292 | -5/Factory | Evolved 2 slots: Power x1, Weapon x1 5300 | -5/Factory | Identified exit to DSF 5347 | -5/Factory | Entered DSF 5347 | -5/DSF | Accompanied by 1 ally 5357 | -5/DSF | Assembled infested the area 5384 | -5/DSF | Additional patrols routed to DSF 5439 | -5/DSF | Lost 3 parts (1n2u) 5537 | -5/DSF | Core integrity fell below 50% 5543 | -5/DSF | Core integrity fell below 20% 5546 | -5/DSF | Destroyed by D-63 Destroyer with Heavy Rocket Launcher Last Messages --------------- 05530_ as-35029 suffers critical hit (Blast). 05530_ as-35029 destroyed. 05531_ The unstable cave ceiling collapses. 05531_ as-17554 destroyed. 05531_ VTOL Module destroyed. 05531_ Imp. VSS Leg destroyed. 05532_ The unstable cave ceiling collapses. 05534_ System corrupted: Matter fused (-5). 05534_ Slug penetrates Earth. 05535_ The unstable cave ceiling collapses. 05536_ Graphene Brace destroyed. 05537_ The unstable cave ceiling collapses. 05538_ Enh. Flexi-carbon Leg destroyed. 05539_ The unstable cave ceiling collapses. 05539_ Penetrated by Slug. 05539_ Knocked back. 05540_ The unstable cave ceiling collapses. 05543_ Hvy. Plasma Cannon destroyed. 05545_ The unstable cave ceiling collapses. [Achievement: 10k Club] Map ----- +----------------------------------------------------+ | ??????????????????????????????????????????????? | | ??????????????????????????????????????????????? | | ??????????????????????????????????????????????? | | ??????????????????????????????????????????????? | | ??????????????????????????????????????????????? | | ??????????????????????????????????????????????? | | ????????????????????????????###?####?######???? | | ????????????????????????????#===#===?# #???? | | ????????????????????????? ##===#===## #???? | | ???????????????????????? % #???? | | ??????????????????????? ##??? | | ?????????????????????? A ^^ "#??? | | ?????????????????????? *% !!! #??? | | ??????????????????????#%H!# # #!!! #??? | | ????????????????????###g%=# ## # # #??? | | ????????????????????#!!%=g== # #??? | | ????????????????????#! %== ## #??? | | ?????????????????????!! dd # ##?? | | ????????????????????### #### # #?? | | ????????????????????# ##?? | | ????????????????????# # #?? | | ????????????????????# # ##?? | | ????????????????????# ! ##??? | | ????????????????????# ] ####? | | ??????????????????### ] %! ""#? | | ??????????????????# !@ ]]% % ""##"#? | | ??????????????????# ! # """"#??#? | | ??????????????????# !! ]###"""""#???? | | ??????????????????# ##?##"####???? | | ??????????????????# #???#"#??????? | | ??????????????????## ##???#""??????? | | ???????????????????# #????###?????? | | ???????????????????### #????????????? | | ?????????????????????### ###????????????? | | ???????????????????????#########??????????????? | | ??????????????????????????????????????????????? | | | | | | | | | | | | | | | | | | | | | | | | | | | | | +----------------------------------------------------+ Best States ------------- Heat Dissipation 40 Energy Generation 21 Energy Capacity 325 Matter Stores 500 Matter Capacity 500 Sight Range 18 Terrain Scan Range 14 Terrain Scan Density 10 Armor Coverage 300 Resistance: EM 15 Weapon Shielding 33 Weapon Cycling 15 Evasion (%) 59 Targeting Accuracy 8 Melee Accuracy 6 Recoil Reduction 4 Energy Filtering 30 Kinecelleration 30 Authchip Count 1 Item Schematics ----------------- Combat Drone Bay | -6/Data Miner | Free Lgt. Regenerative Plating | -6/Data Miner | Free Exp. Cesium-ion Thruster | -6/Data Miner | Free Prc. Matter Filter | -6/Data Miner | Free Enh. Coil Gun | -6/Data Miner | Free Hvy. Siege Treads | -6/Data Miner | Free Nanoactuators | -6/Data Miner | Free Phase Gun | -6/Data Miner | Free Shield Leg | -6/Data Miner | Free Adv. Concussive RPG | -6/Data Miner | Free Quantum Rifle | -6/Data Miner | Free Com. HERF Cannon | -6/Data Miner | Free Robot Schematics ------------------ A-15 Conveyor | -6/Data Miner | Free B-48 Gladiator | -6/Data Miner | Free M-22 Extractor | -6/Data Miner | Free Fabricated ------------ Nothing Repaired ---------- Lgt. Treads | 35% | -9/Storage Imp. Light Cannon | 5% | -8/Materials Studied --------- None Alien Tech Used ----------------- None Achievements -------------- 10k Club Bumper Bots Deconstruction Fist Fight Hunted I Laugh At Your Crits I'm Back, Baby! Leap Before You Look Sprinter The Oracle Window Shopping Challenges ------------ None Game ------ Seed MomentumPulsarPulseblaster Manual? 0 Play Time 01:34:39 Cumulative 7.0 hours Start 2026.03.09 @ 14:10:33 End 2026.03.09 @ 15:45:05 Sessions 1 Manual Loads 0 Difficulty Rogue Special Mode None Game No. 7 Rogue 7 Adventurer 0 Explorer 0 Win Type - Total 0 Types 0/0/0/0/0/0/0/0/0/0 Lore% 4 Gallery% 11 Achievement% 11 Wizard Run 0 Options --------- Layout 2 ASCII 0 Keyboard 0 Movement Mouse Keybinds 0 Fullscreen 2 Font 24/Smallcaps Map View 50x44 Zoom Use 0% Tactical HUD 1 Map Filters NONE Filters NONE Steam 1 RUN: 9cdc6b02-d38b-47cf-9b55-6af353fd99cf